bitfinex/quotes_ETHUSD_20250106
["timestamp","ask_amount","ask_price","bid_price","bid_amount"]
[1736132102376,1.12339571,3667.2,3666.7,1.17937041]
[1736132102578,1.12339571,3667.2,3666.8,1.41427743]
[1736132102785,1.12339571,3667.2,3666.8,1.44892873]
[1736132103367,1.12339571,3667.3,3666.8,1.44892873]
[1736132104964,2.45406,3667.4,3666.8,1.44892873]
[1736132105176,2.45406,3667.4,3666.8,1.1884513]
[1736132107260,1.12339571,3667.6,3666.8,1.1884513]
[1736132107492,3.57734571,3667.6,3666.8,1.1884513]
[1736132107889,1.12339571,3667.6,3666.8,1.1884513]
[1736132108490,1.12339571,3667.6,3667.0,1.1538]
[1736132108806,2.45386,3667.7,3667.1,0.03432928]
[1736132111154,1.12339571,3667.9,3667.2,1.1538]
[1736132111476,1.12339571,3667.9,3667.2,1.18810856]
[1736132111877,2.45388,3667.7,3667.2,1.18810856]
[1736132113486,2.45372,3667.9,3667.2,1.18810856]
[1736132114191,2.45372,3667.9,3667.3,35.0]
[1736132114396,2.45372,3667.9,3667.3,35.03369605]
[1736132114693,2.4539,3667.7,3667.3,35.03369605]
[1736132115790,2.45392,3667.6,3667.3,35.03369605]
[1736132115996,1.12339571,3668.0,3667.3,0.03369605]
[1736132116193,1.5726,3667.6,3666.9,1.1538]
[1736132116393,2.45419,3667.2,3666.2,1.12282317]
[1736132116688,2.45419,3667.2,3667.0,0.03375822]
[1736132116940,2.45419,3667.2,3666.4,1.1538]
[1736132117092,2.45419,3667.2,3667.1,0.0337375]
[1736132117452,2.45419,3667.2,3666.5,35.0]
[1736132117756,2.45419,3667.2,3666.5,37.71757592]
[1736132117957,2.45419,3667.2,3666.6,0.03352883]
[1736132118157,2.45434,3667.0,3666.6,0.03352883]
[1736132118382,2.45398,3667.5,3666.6,0.03352883]
[1736132118383,0.55,3667.4,3666.6,0.03352883]
[1736132118680,2.45445,3666.9,3666.7,35.0]
[1736132118876,2.45445,3666.8,3666.7,35.0]
[1736132119394,2.45452,3666.7,3665.8,1.1538]
[1736132119596,2.45452,3666.7,3665.9,0.99533134]
[1736132119784,2.45452,3666.7,3666.0,35.0]
[1736132120561,2.45452,3666.7,3666.1,0.03363251]
[1736132120767,4.10472,3666.7,3666.1,0.03363251]
[1736132121098,4.10472,3666.7,3666.1,0.21827638]
[1736132121302,4.10472,3666.7,3666.2,35.03361177]
[1736132123963,1.6502,3666.7,3666.2,35.03361177]
[1736132124170,2.4546,3666.6,3666.2,35.03361177]
[1736132125582,1.6502,3666.7,3666.2,35.03361177]
[1736132125910,1.6502,3666.7,3666.2,36.92261265]
[1736132129485,1.6502,3666.7,3666.2,35.03361177]
[1736132132202,4.10473,3666.7,3666.2,35.03361177]
[1736132132714,2.78654035,3666.6,3666.2,0.03361177]
[1736132133008,1.67605774,3667.2,3665.3,1.12282317]
[1736132133009,2.455,3666.0,3665.3,1.12282317]
[1736132133214,2.455,3666.0,3665.5,35.0]
[1736132133413,2.45515,3665.8,3665.5,35.0]
[1736132133787,2.45527,3665.6,3665.3,1.12282317]
[1736132133982,4.06259,3665.4,3665.3,1.12282317]
[1736132134183,4.58678304,3665.4,3665.3,1.12282317]
[1736132134676,5.13678304,3665.4,3665.3,1.12282317]
[1736132134879,8.13678304,3665.4,3665.3,1.12282317]
[1736132135127,0.55,3665.3,3665.1,1.67331634]
[1736132135334,1.6131,3664.2,3663.9,1.32251872]
[1736132135635,2.45627,3664.1,3663.9,1.32251872]
[1736132135832,2.45627,3664.1,3664.0,35.0]
[1736132136545,2.45627,3664.1,3663.9,1.32251872]
[1736132136753,2.45627,3664.1,3663.9,0.1802123]
[1736132136969,3.23717647,3664.1,3663.9,0.1802123]
[1736132139095,2.45636,3664.0,3663.2,35.0]
[1736132139291,2.45647,3663.8,3663.2,35.0]
[1736132139530,1.6131,3664.2,3663.2,35.0]
[1736132139835,2.45644,3663.9,3663.2,35.0]
[1736132140133,2.45647,3663.8,3663.2,37.71757592]
[1736132140430,1.6131,3664.2,3663.3,1.1538]
[1736132140638,2.4564,3663.9,3663.1,0.005]
[1736132140802,1.6131,3664.2,3663.8,35.0]
[1736132140803,4.06934,3664.2,3663.8,35.0]
[1736132141001,2.45635,3664.0,3663.8,35.0]
[1736132143330,3.108914,3664.0,3663.8,35.0]
[1736132144196,2.45635,3664.0,3663.8,35.0]
[1736132145252,1.12339571,3665.0,3663.8,35.0]
[1736132145253,4.01595,3664.5,3663.8,35.0]
[1736132145559,2.45608,3664.4,3663.8,35.0]
[1736132146101,1.5599,3664.5,3663.8,35.0]
[1736132146339,4.01591,3664.5,3663.8,35.0]
[1736132146501,1.5599,3664.5,3663.8,37.71757592]
[1736132146800,1.5599,3664.5,3663.8,35.0]
[1736132147138,2.4562,3664.2,3663.8,35.0]
[1736132148127,1.5599,3664.5,3663.8,35.0]
[1736132148128,4.01593,3664.5,3663.8,35.0]
[1736132148327,1.5599,3664.9,3663.9,1.1538]
[1736132148834,2.45602,3664.5,3663.9,1.1538]
[1736132149039,2.45602,3664.5,3664.0,2.71757592]
[1736132149638,2.45602,3664.5,3663.9,1.1538]
[1736132149816,2.45608,3664.4,3664.0,35.0]
[1736132150144,2.45608,3664.4,3664.0,35.03449425]
[1736132151434,2.45586,3664.7,3664.0,35.03449425]
[1736132151638,2.45586,3664.7,3664.0,0.03449425]
[1736132151849,0.456576,3664.6,3663.6,1.1538]
[1736132152216,0.456576,3664.6,3663.7,35.03429624]
[1736132152217,2.45599,3664.5,3663.7,35.03429624]
[1736132152416,2.45619,3664.3,3663.7,35.03429624]
[1736132153440,2.45598,3664.6,3663.7,35.03429624]
[1736132153630,2.45598,3664.6,3663.8,2.71757592]
[1736132153831,2.45598,3664.6,3663.8,2.75185139]
[1736132154142,1.5599,3664.9,3663.8,0.03427547]
[1736132154348,2.45609,3664.4,3663.9,35.0]
[1736132154580,2.45609,3664.4,3663.9,35.03425471]
[1736132155047,0.55,3664.3,3663.9,0.03425471]
[1736132155214,2.45633,3664.0,3663.3,1.1538]
[1736132155605,1.5445,3664.8,3663.5,1.1538]
[1736132155809,4.00034,3664.8,3663.5,1.1538]
[1736132156322,1.5445,3664.8,3663.5,1.1538]
[1736132156625,2.45642,3663.9,3663.4,35.0]
[1736132156824,2.45647,3663.8,3663.4,35.0]
[1736132161268,2.4566,3663.6,3663.4,35.0]
[1736132162092,2.45666,3663.5,3663.4,35.0]
[1736132163156,2.45666,3663.5,3663.1,0.005]
[1736132163368,2.45683,3663.3,3663.1,0.005]
[1736132163967,2.45686,3663.2,3663.1,0.005]
[1736132164832,2.45686,3663.2,3663.1,0.03985951]
[1736132166139,1.611,3663.4,3663.1,0.03985951]
[1736132166361,1.611,3663.8,3663.1,0.03985951]
[1736132166556,4.06748,3663.8,3663.2,1.1538]
[1736132166746,2.45648,3663.8,3663.2,1.1538]
[1736132166956,2.45648,3663.8,3663.3,0.03493369]
[1736132167269,2.45648,3663.8,3663.2,1.1538]
[1736132167474,2.45648,3663.8,3663.4,0.03491292]
[1736132167637,2.45648,3663.8,3663.3,0.03493369]
[1736132167836,2.45648,3663.8,3663.2,1.1538]
[1736132168070,2.45648,3663.8,3663.3,0.03493369]
[1736132168456,2.45648,3663.8,3663.2,1.1538]
[1736132168769,2.45648,3663.8,3663.3,0.03493369]
[1736132168974,1.12339571,3664.4,3663.3,0.03493369]
[1736132169141,2.45618,3664.3,3663.2,1.1538]
[1736132169336,3.57949571,3664.4,3663.4,1.1538]
[1736132169640,3.57949571,3664.4,3663.5,35.03489215]
[1736132169959,2.45613,3664.3,3663.5,35.03489215]
[1736132170872,0.55,3664.4,3663.5,35.03489215]
[1736132171046,2.45648,3663.8,3663.5,0.03489215]
[1736132171251,2.45648,3663.8,3663.1,1.1588]
[1736132171451,2.45648,3663.8,3663.2,0.03495446]
[1736132171649,2.45648,3663.8,3663.3,35.0]
[1736132171872,4.10393,3664.3,3663.4,0.03491292]
[1736132172176,2.45631,3664.1,3663.4,0.03491292]
[1736132172470,2.45631,3664.1,3663.1,1.1588]
[1736132172771,2.45631,3664.1,3663.5,35.03489215]
[1736132172950,2.45631,3664.1,3663.5,35.0]
[1736132173278,2.45631,3664.1,3663.6,0.03487139]
[1736132173989,2.45631,3664.1,3663.1,1.1588]
[1736132174168,2.45631,3664.1,3663.2,0.6232159]
[1736132174489,2.45631,3664.1,3663.2,0.65817036]
[1736132174674,1.6478,3664.3,3663.2,0.65817036]
[1736132174867,2.4564,3663.9,3663.2,0.03495446]
[1736132175251,2.45653,3663.7,3663.2,0.03495446]
[1736132175455,0.55,3664.0,3663.2,0.03495446]
[1736132175680,2.45686,3663.2,3663.1,0.005]
[1736132177895,5.91827452,3663.2,3663.1,0.005]
[1736132178076,7.31377824,3663.2,3663.1,0.005]
[1736132178657,7.8754761,3663.2,3663.1,0.005]
[1736132179989,10.31439268,3663.2,3663.1,0.005]
[1736132180296,2.45718,3662.8,3662.2,1.1538]
[1736132180994,2.45718,3662.8,3662.3,0.03419829]
[1736132181372,2.45718,3662.8,3662.2,1.1538]
[1736132181558,2.45718,3662.8,3662.4,0.03417751]
[1736132181760,2.45718,3662.8,3662.3,0.03419829]
[1736132181960,1.13590324,3662.5,3662.2,1.1538]
[1736132182379,1.13590324,3662.5,3662.3,0.03419829]
[1736132182894,1.13590324,3662.5,3662.2,1.1538]
[1736132183192,2.07111076,3662.6,3662.2,1.1538]
[1736132183401,2.07111076,3662.6,3662.3,0.03419829]
[1736132183698,2.07111076,3662.6,3662.2,1.1538]
[1736132183882,2.06782529,3662.6,3662.2,1.5310829]
[1736132184085,2.06782529,3662.6,3662.4,1.1538]
[1736132184274,2.06782529,3662.7,3662.5,1.1538]
[1736132184475,2.06782529,3662.7,3662.6,3.80428316]
[1736132184779,2.06782529,3662.7,3662.6,4.43044948]
[1736132186204,2.34370055,3663.4,3662.7,1.1538]
[1736132186358,2.34370055,3663.4,3663.1,5.07322898]
[1736132186563,2.34370055,3663.4,3663.2,1.1538]
[1736132186862,2.34370055,3663.4,3663.2,1.18784989]
[1736132187062,2.34370055,3663.4,3663.3,0.62610789]
[1736132187264,2.34370055,3663.4,3663.3,4.27077557]
[1736132187462,2.34370055,3663.4,3663.3,7.27077557]
[1736132187663,0.2488,3663.5,3663.3,4.81397557]
[1736132187858,0.2488,3663.5,3663.4,5.07302898]
[1736132188165,0.2488,3663.5,3663.4,6.09556903]
[1736132188499,0.2488,3663.5,3663.4,10.24936903]
[1736132190397,0.2488,3663.5,3663.4,45.24936903]
[1736132192402,0.2488,3663.5,3663.4,37.17634005]
[1736132192702,0.2488,3663.5,3663.4,36.18763959]
[1736132193004,0.2488,3663.5,3663.4,0.03383959]
[1736132193165,2.70546,3663.5,3663.4,0.03383959]
[1736132193364,2.45677,3663.4,3662.9,1.14296656]
[1736132193570,0.2488,3663.5,3662.9,1.14296656]
[1736132193771,2.70548,3663.5,3663.0,0.03359491]
[1736132194103,2.45675,3663.4,3663.0,0.03359491]
[1736132194268,2.45681,3663.3,3663.0,0.03359491]
[1736132194472,2.45681,3663.3,3662.6,35.0]
[1736132194686,2.45681,3663.3,3662.7,0.03365723]
[1736132195165,0.679328,3663.5,3662.7,0.03365723]
[1736132195371,0.679328,3663.5,3662.8,35.0]
[1736132195595,0.2488,3663.5,3662.8,35.03363645]
[1736132197470,2.70548,3663.5,3662.8,35.03363645]
[1736132197904,4.03364,3663.4,3662.8,35.03363645]
[1736132198111,2.45681,3663.3,3662.8,35.03363645]
[1736132198300,1.5769,3663.4,3662.8,35.03363645]
[1736132199420,2.45681,3663.3,3662.8,35.03363645]
[1736132199870,1.5769,3663.4,3662.8,35.03363645]
[1736132201770,2.70547,3663.5,3662.8,35.03363645]
[1736132201974,0.2488,3663.5,3662.8,38.90501237]
[1736132202474,0.2488,3663.5,3662.9,2.61629898]
[1736132202788,0.2488,3663.5,3662.8,41.36214237]
[1736132202789,0.2488,3663.5,3663.2,2.61629898]
[1736132203176,0.2488,3663.5,3663.4,3.61053]
[1736132203400,0.2488,3663.5,3663.4,6.61053]
[1736132203713,0.2488,3663.5,3663.4,7.57054459]
[1736132203921,0.2488,3663.5,3663.4,42.57054459]
[1736132204785,0.2488,3663.5,3663.4,43.10931425]
[1736132206218,0.2488,3663.5,3663.4,40.11381459]
[1736132206415,0.2488,3663.5,3663.4,36.18773601]
[1736132206622,0.2488,3663.5,3663.4,1.18773601]
[1736132207700,0.2488,3663.5,3663.4,0.03393601]
[1736132207891,0.2488,3663.5,3663.2,35.0]
[1736132208093,0.2488,3663.5,3663.3,0.03359039]
[1736132208641,2.45673,3663.4,3663.3,0.03359039]
[1736132208790,0.685783,3663.5,3662.8,1.1538]
[1736132208987,0.685783,3663.5,3662.6,3.77009898]
[1736132208988,0.2488,3663.5,3662.6,3.77009898]
[1736132209217,0.2488,3663.5,3662.9,35.03378434]
[1736132209432,0.2488,3663.5,3662.9,35.0]
[1736132209645,0.2488,3663.5,3663.0,0.03356107]
[1736132212496,0.2488,3663.5,3663.1,1.1538]
[1736132212695,0.2488,3663.5,3663.2,0.65966866]
[1736132213119,0.2488,3663.5,3663.3,35.0]
[1736132213632,0.2488,3663.5,3663.4,0.03355512]
[1736132214123,0.2488,3663.5,3662.7,1.1538]
[1736132214328,0.2488,3663.5,3663.4,35.0]
[1736132214750,0.2488,3663.5,3663.4,35.03350209]
[1736132216225,2.88958,3663.5,3663.4,0.03350209]
[1736132216616,2.45675,3663.4,3662.8,35.0]
[1736132216823,2.45683,3663.3,3662.8,35.0]
[1736132217001,2.45683,3663.3,3662.9,0.03272434]
[1736132220207,3.007,3663.0,3662.9,0.03272434]
[1736132220535,1.5852,3662.5,3662.0,0.00273]
[1736132220704,4.04254,3662.5,3662.0,0.00273]
[1736132220904,4.04254,3662.5,3662.1,0.02987922]
[1736132221528,2.4574,3662.4,3662.2,35.0]
[1736132221920,2.4574,3662.4,3662.3,0.02983765]
[1736132222535,2.45747,3662.3,3662.2,35.0]
[1736132223626,1.5852,3662.5,3662.2,35.0]
[1736132224023,2.45741,3662.4,3662.2,35.0]
[1736132224441,2.45747,3662.3,3662.2,35.0]
[1736132225144,4.5207,3662.1,3662.0,0.00273]
[1736132225512,3.9707,3662.1,3662.0,0.00273]
[1736132225708,3.9707,3662.1,3662.0,0.03305898]
[1736132225930,3.97053,3662.4,3662.0,0.03305898]
[1736132226147,2.64673498,3662.7,3662.0,0.03305898]
[1736132226322,2.4573,3662.6,3662.0,0.03305898]
[1736132226640,2.45735,3662.5,3662.0,0.03305898]
[1736132227050,2.45735,3662.5,3662.4,35.0]
[1736132227407,2.45735,3662.5,3662.4,35.03035674]
[1736132228341,2.9677585,3662.5,3662.4,35.03035674]
[1736132228905,2.9677585,3662.5,3662.4,0.03035674]
[1736132229104,0.5104085,3662.5,3662.0,0.00273]
[1736132229310,2.4576,3662.1,3662.0,0.00273]
[1736132229608,4.0503,3662.1,3662.0,0.00273]
[1736132230021,4.0503,3662.1,3662.0,0.03309273]
[1736132230233,4.0503,3662.1,3662.0,0.00273]
[1736132230429,4.45533,3662.1,3662.0,0.03315541]
[1736132230638,4.45533,3662.1,3662.0,0.00273]
[1736132231229,4.45533,3662.1,3662.0,0.03315541]
[1736132231457,4.45533,3662.1,3662.0,0.00273]
[1736132231826,4.45533,3662.1,3662.0,0.03315541]
[1736132232339,4.05395,3662.4,3662.0,0.03315541]
[1736132233467,2.45747,3662.3,3662.0,0.03315541]
[1736132233867,2.45735,3662.5,3662.0,0.03315541]
[1736132234660,0.55,3662.6,3662.0,0.03315541]
[1736132234863,2.4576,3662.1,3662.0,0.00273]
[1736132235063,0.4725099,3662.5,3662.0,0.00273]
[1736132235064,2.45746,3662.4,3662.0,0.00273]
[1736132235562,2.45746,3662.4,3662.1,0.02991765]
[1736132235744,2.45746,3662.4,3662.2,35.0]
[1736132236161,2.45746,3662.4,3662.3,0.02984717]
[1736132236662,2.45746,3662.4,3662.0,0.00273]
[1736132236859,1.5588,3662.7,3662.1,0.02988873]
[1736132236860,4.01605,3662.7,3662.1,0.02988873]
[1736132237063,2.45727,3662.6,3662.1,0.02988873]
[1736132239914,1.5588,3662.7,3662.1,0.02988873]
[1736132240122,2.45742,3662.4,3662.1,0.02988873]
[1736132240465,1.5588,3662.7,3662.1,0.02988873]
[1736132240999,4.10103,3662.2,3662.1,0.02988873]
[1736132244150,3.0076,3662.1,3662.0,0.00273]
[1736132244594,4.5852,3662.1,3662.0,0.00273]
[1736132244797,5.60541163,3662.1,3662.0,0.00273]
[1736132247962,2.45803,3661.5,3660.8,1.1538]
[1736132248317,2.45803,3661.5,3660.9,0.02865112]
[1736132248746,2.45808,3661.4,3660.9,0.02865112]
[1736132249054,2.45834,3661.0,3660.9,0.02865112]
[1736132249255,2.759174,3661.0,3660.9,0.02865112]
[1736132249451,2.45842,3660.9,3660.3,1.3340123]
[1736132249743,2.45842,3660.9,3660.4,0.02869235]
[1736132250243,2.45842,3660.9,3660.3,1.3340123]
[1736132250537,2.45842,3660.9,3660.4,0.02869235]
[1736132250745,3.00828,3661.1,3660.4,0.02869235]
[1736132250942,0.135,3662.4,3660.4,0.02869235]
[1736132251143,2.45822,3661.2,3660.4,0.02869235]
[1736132251307,2.45828,3661.1,3660.3,1.3340123]
[1736132251505,2.45828,3661.1,3660.4,0.02869235]
[1736132253674,0.4184299,3661.4,3660.4,0.02869235]
[1736132253874,2.45814,3661.3,3660.7,0.00480176]
[1736132254184,3.16422689,3661.3,3660.8,0.02860915]
[1736132254559,3.16422689,3661.3,3660.3,1.3340123]
[1736132254857,2.45814,3661.3,3660.3,1.3340123]
[1736132255212,2.45814,3661.3,3660.4,0.02869235]
[1736132256097,1.13363498,3661.8,3660.6,3.77009898]
[1736132256284,1.13363498,3661.8,3660.7,1.1538]
[1736132256439,1.13363498,3661.8,3660.7,1.18242995]
[1736132257053,1.13363498,3661.8,3660.8,0.37987289]
[1736132257382,3.59144498,3661.8,3660.9,1.18238835]
[1736132258397,2.45781,3661.8,3660.9,1.18238835]
[1736132262308,0.55,3662.0,3660.9,1.18238835]
[1736132262508,1.6184,3661.5,3660.9,1.18238835]
[1736132262687,2.45821,3661.3,3660.9,0.02858835]
[1736132263010,2.45821,3661.3,3660.6,1.1538]
[1736132263222,2.45821,3661.2,3660.6,1.1538]
[1736132263391,2.45821,3661.2,3660.7,0.02854323]
[1736132266713,1.29547498,3661.4,3660.7,0.02854323]
[1736132266894,2.45843,3660.9,3660.3,1.3340123]
[1736132267071,2.45843,3660.9,3660.4,0.0288406]
[1736132267503,3.399461,3661.1,3660.4,0.0288406]
[1736132268603,2.45828,3661.1,3660.4,0.0288406]
[1736132268801,2.45836,3661.0,3660.4,0.0288406]
[1736132269250,2.45836,3661.0,3660.3,1.3340123]
[1736132269539,2.45836,3661.0,3660.4,0.0270163]
[1736132270347,0.62189926,3661.1,3660.4,0.0270163]
[1736132270651,2.45843,3660.9,3660.4,0.0270163]
[1736132272445,0.30803293,3660.8,3660.4,0.0270163]
[1736132272646,1.6514,3660.9,3660.4,0.0270163]
[1736132272851,2.45854,3660.8,3660.3,1.3340123]
[1736132273049,2.45858,3660.7,3660.3,1.3340123]
[1736132273249,2.45858,3660.7,3660.4,0.02614975]
[1736132273544,2.45858,3660.7,3660.3,1.3340123]
[1736132273753,2.45858,3660.7,3660.4,0.02619275]
[1736132274054,2.924578,3660.7,3660.4,0.02619275]
[1736132274911,2.45868,3660.5,3660.4,0.02619275]
[1736132275254,2.45868,3660.5,3660.3,0.1802123]
[1736132275556,1.6514,3660.9,3660.4,1.1538]
[1736132275752,3.59200498,3661.0,3660.4,1.1538]
[1736132275948,4.81224954,3661.0,3660.4,1.1538]
[1736132276630,2.45841,3660.9,3660.4,1.1538]
[1736132276826,1.22024456,3661.0,3660.4,1.1538]
[1736132277148,1.13363498,3661.1,3660.5,0.02553749]
[1736132277540,1.13363498,3661.1,3660.6,3.77009898]
[1736132277718,1.70385486,3661.3,3660.7,1.17922854]
[1736132277719,1.13363498,3661.3,3660.7,1.17922854]
[1736132279138,3.59178498,3661.3,3660.7,1.17922854]
[1736132279462,2.45824,3661.2,3660.7,1.17922854]
[1736132279760,2.45824,3661.2,3660.7,1.1538]
[1736132281260,0.3591875,3661.2,3660.7,1.1538]
[1736132281561,2.45829,3661.1,3660.7,1.1538]
[1736132281926,0.55,3661.1,3660.4,1.1538]
[1736132283263,1.13363498,3660.9,3660.4,1.1538]
[1736132283467,3.59204498,3660.9,3660.4,1.1538]
[1736132283851,3.58724322,3660.9,3660.4,1.1538]
[1736132284172,1.5196,3660.6,3660.3,0.1802123]
[1736132284325,2.45874,3660.4,3660.3,0.1802123]
[1736132286171,2.35180885,3660.4,3660.3,0.1802123]
[1736132287195,2.35180885,3660.4,3660.3,1.3340123]
[1736132287399,2.35180885,3660.4,3660.3,1.97494243]
[1736132287554,0.94075804,3660.6,3660.3,1.97494243]
[1736132287889,0.94075804,3660.6,3660.3,1.3340123]
[1736132288794,0.94075804,3661.0,3660.3,1.3340123]
[1736132289695,3.39914804,3661.0,3660.3,1.3340123]
[1736132290017,2.45839,3661.0,3660.3,1.3340123]
[1736132290179,0.94075804,3661.1,3660.3,1.3340123]
[1736132290380,3.39908804,3661.1,3660.3,1.3340123]
[1736132291508,2.35221403,3661.0,3660.3,1.3340123]
[1736132292373,2.35221403,3661.0,3660.3,1.71331453]
[1736132293312,2.35221403,3661.0,3660.4,1.1538]
[1736132293888,2.45827,3661.1,3660.4,1.1538]
[1736132294406,4.05606889,3661.2,3660.4,1.1538]
[1736132294893,3.49038801,3661.0,3660.4,1.1538]
[1736132295095,3.49038801,3661.0,3660.5,0.41721745]
[1736132296223,1.13817398,3661.1,3660.5,0.41721745]
[1736132296884,1.13817398,3661.1,3660.4,1.1538]
[1736132297475,3.59638398,3661.2,3660.4,1.1538]
[1736132298724,3.49050615,3661.1,3660.4,1.1538]
[1736132301015,3.49050615,3661.1,3660.5,1.1538]
[1736132301016,1.13817398,3661.1,3660.5,1.1538]
[1736132302418,1.13817398,3661.3,3660.5,1.1538]
[1736132302618,1.13817398,3661.3,3660.7,1.1538]
[1736132304419,1.13817398,3661.4,3660.7,1.1538]
[1736132308279,1.13817398,3661.4,3660.8,3.77009898]
[1736132308474,2.07893202,3661.4,3661.3,3.61194]
[1736132308688,2.07893202,3661.4,3661.3,1.7766239]
[1736132309030,2.07893202,3661.4,3660.9,1.1538]
[1736132309231,4.53701202,3661.4,3660.9,1.1538]
[1736132309539,2.45816,3661.3,3660.9,1.1538]
[1736132309736,2.45839,3661.0,3660.4,1.1538]
[1736132310034,4.01009,3661.0,3660.4,1.1538]
[1736132310694,4.01009,3661.0,3660.7,1.14296656]
[1736132311997,4.01009,3661.0,3660.8,35.0]
[1736132311998,0.94075804,3660.9,3660.8,35.0]
[1736132314347,2.35448902,3660.9,3660.8,35.0]
[1736132314562,2.35448902,3660.9,3660.8,37.71757592]
[1736132315196,2.35448902,3660.9,3660.8,2.71757592]
[1736132315400,1.13817398,3661.2,3660.4,1.1538]
[1736132315634,1.13817398,3661.2,3660.8,35.0]
[1736132316440,3.59639398,3661.2,3660.8,35.0]
[1736132317544,1.13817398,3661.0,3660.8,35.0]
[1736132318725,3.492663,3661.1,3660.4,1.1538]
[1736132319113,3.492663,3661.1,3660.5,35.0]
[1736132319317,3.492663,3661.1,3660.7,2.61629898]
[1736132319649,3.492663,3661.1,3661.0,3.61214]
[1736132319850,3.492663,3661.1,3661.0,6.22843898]
[1736132320147,2.35448902,3661.1,3661.0,41.22843898]
[1736132321047,2.35448902,3661.1,3661.0,38.61214]
[1736132321246,2.77971989,3661.8,3661.0,36.1538]
[1736132322245,1.13961989,3661.6,3661.0,36.1538]
[1736132323643,2.08037793,3661.9,3661.0,36.1538]
[1736132324385,3.49284093,3661.9,3661.0,36.1538]
[1736132324678,3.49284093,3661.9,3661.1,2.03852171]
[1736132325645,1.13961989,3661.8,3661.1,2.03852171]
[1736132325846,1.13961989,3661.8,3661.0,36.1538]
[1736132326350,1.13961989,3661.8,3661.1,2.45826]
[1736132326577,1.13961989,3661.8,3661.2,1.1538]
[1736132326768,1.13961989,3661.8,3661.2,3.612]
[1736132327170,1.412463,3661.7,3661.2,3.612]
[1736132327366,1.412463,3661.7,3661.3,2.71757592]
[1736132328784,0.94075804,3662.0,3661.3,2.71757592]
[1736132329444,0.94075804,3662.0,3661.2,1.1538]
[1736132329881,3.49132988,3662.0,3661.4,35.0]
[1736132330994,2.08037793,3662.0,3661.4,35.0]
[1736132331682,2.08037793,3662.0,3661.5,1.1538]
[1736132331861,2.08037793,3662.0,3661.5,3.87137592]
[1736132332586,0.94075804,3662.0,3661.5,3.87137592]
[1736132333484,0.94075804,3662.0,3661.5,1.1538]
[1736132333887,2.45781,3661.8,3661.4,35.0]
[1736132335393,2.35211341,3661.7,3661.4,35.0]
[1736132336487,2.08037793,3661.7,3661.4,35.0]
[1736132336992,2.08037793,3661.7,3661.2,1.1538]
[1736132337584,2.08037793,3661.7,3661.3,35.0]
[1736132337790,1.5112,3661.6,3661.3,35.0]
[1736132338093,2.45816,3661.3,3660.7,1.1538]
[1736132338455,2.45816,3661.3,3660.8,35.0]
[1736132338655,3.00803,3661.5,3660.8,35.0]
[1736132338858,2.45807,3661.4,3660.8,35.0]
[1736132339586,0.94075804,3661.2,3660.8,35.0]
[1736132340287,1.41108039,3661.2,3660.8,35.0]
[1736132341679,2.08037793,3661.3,3660.8,35.0]
[1736132343778,2.55083645,3661.2,3660.8,35.0]
[1736132344882,1.5936,3661.1,3660.8,35.0]
[1736132345199,3.00481656,3661.1,3660.8,35.0]
[1736132345516,1.41121656,3661.1,3660.8,35.0]
[1736132345724,1.41121656,3661.1,3660.9,1.1538]
[1736132345993,1.41121656,3661.1,3660.8,35.0]
[1736132346197,0.94075804,3661.0,3660.8,35.0]
[1736132347188,1.5095,3660.9,3660.8,35.0]
[1736132347593,3.96772,3661.2,3660.8,35.0]
[1736132349101,3.49151078,3661.1,3660.8,35.0]
[1736132350029,5.94980078,3661.1,3660.8,35.0]
[1736132350501,4.53866793,3661.1,3660.8,35.0]
[1736132351070,2.85558021,3661.1,3660.3,0.1802123]
[1736132351396,4.05966,3660.7,3660.3,0.1802123]
[1736132351581,4.05966,3660.7,3660.4,35.0]
[1736132351967,1.6011,3660.7,3660.3,0.1802123]
[1736132352206,2.45862,3660.6,3660.3,0.1802123]
[1736132352581,2.45862,3660.6,3660.3,35.1802123]
[1736132353413,5.95040221,3660.6,3660.3,35.1802123]
[1736132354597,0.94075804,3660.5,3660.3,35.1802123]
[1736132354786,3.39943804,3660.5,3660.3,35.1802123]
[1736132355613,3.39943804,3660.5,3660.3,0.1802123]
[1736132355826,3.24308128,3660.5,3660.3,0.1802123]
[1736132356140,3.24308128,3660.5,3660.4,35.0]
[1736132356801,3.24308128,3660.5,3660.3,0.1802123]
[1736132357418,3.24308128,3660.5,3660.3,35.1802123]
[1736132357730,2.45868,3660.5,3660.3,35.1802123]
[1736132359119,2.45539229,3660.5,3660.3,35.1802123]
[1736132360291,2.45539229,3660.5,3660.3,0.1802123]
[1736132360786,2.45539229,3660.5,3660.4,35.0]
[1736132362845,3.39533458,3660.5,3660.4,35.0]
[1736132363731,4.42517351,3660.5,3660.4,35.0]
[1736132363933,6.06867351,3660.5,3660.4,35.0]
[1736132364260,2.45874,3660.4,3660.3,0.1802123]
[1736132365947,3.97294,3660.4,3660.3,0.1802123]
[1736132366124,4.52294,3660.4,3660.3,0.1802123]
[1736132366322,5.69934901,3660.4,3660.3,0.1802123]
[1736132367059,10.66497102,3660.4,3660.3,0.1802123]
[1736132368830,12.36882588,3660.4,3660.3,0.1802123]
[1736132370158,10.66497102,3660.4,3660.3,0.1802123]
[1736132371656,11.80017488,3660.4,3660.3,0.1802123]
[1736132374898,10.66497102,3660.4,3660.3,0.1802123]
[1736132376196,12.36882588,3660.4,3660.3,0.1802123]
[1736132380098,9.7525269,3660.4,3660.3,0.1802123]
[1736132380317,8.02611789,3660.4,3660.3,0.1802123]
[1736132380517,4.05317789,3660.4,3660.3,0.1802123]
[1736132381068,2.34932303,3660.4,3660.3,35.1802123]
[1736132381517,2.34932303,3660.4,3660.3,0.1802123]
[1736132381881,4.80806303,3660.4,3660.3,0.1802123]
[1736132382900,2.45874,3660.4,3660.3,0.1802123]
[1736132383374,1.134976,3660.7,3660.3,1.3340123]
[1736132383593,2.45864,3660.6,3660.3,1.3340123]
[1736132385291,2.45868,3660.5,3660.3,1.3340123]
[1736132389321,1.134976,3660.6,3660.3,1.3340123]